[Event "FIDE WCCC Girls-10 2024"]
[Site "Montesilvano"]
[Date "2024.11.24"]
[Round "9.26"]
[White "Afandi, Sadagul"]
[Black "Macchia-Shahar, Yali"]
[Result "1-0"]
[Annotator "NA RC"]
[ECO "B80"]
[WhiteElo "1625"]
[BlackElo "1564"]
[PlyCount "69"]
[EventDate "2024.11.18"]
[EventType "swiss"]
[EventCountry "ITA"]
[SourceTitle "playchess.com"]
[Source "ChessBase"]
[SourceQuality "1"]
[TimeControl "5400+30"]

1. e4 {[%emt 0:00:02]} c5 {[%emt 0:00:09]} 2. Nf3 {[%emt 0:00:06]} e6 {[%emt 0:00:14]} 3. d4 {[%emt 0:00:33]} cxd4 {[%emt 0:00:16]} 4. Nxd4 {[%emt 0:00:07]} a6 {[%emt 0:00:18]} 5. Nc3 {[%emt 0:00:17]} Qc7 {[%emt 0:00:21]} 6. g3 {[%emt 0:01:03]} Nf6 {[%emt 0:00:33]} 7. Bg2 {[%emt 0:00:20]} Nc6 {[%emt 0:01:52]} 8. O-O {[%emt 0:02:10]} Be7 {[%emt 0:01:08]} 9. Re1 {[%emt 0:00:49]} d6 {[%emt 0:02:31]} 10. h3 {[%emt 0:05:58]} Bd7 {[%emt 0:05:02]} 11. Nxc6 {[%emt 0:06:18]} Bxc6 {[%emt 0:01:52]} 12. Bf4 {[%emt 0:03:10]} Rd8 {[%emt 0:05:49]} 13. Qe2 {[%emt 0:09:45]} O-O {[%emt 0:05:55]} 14. Rad1 {[%emt 0:05:05]} e5 {[%emt 0:10:48]} 15. Be3 {[%emt 0:01:50]} Qd7 {[%emt 0:07:17]} 16. Rd2 {[%emt 1:00:57]} Qe6 {[%emt 0:04:26]} 17. Red1 {[%emt 0:00:00]} Rd7 {[%emt 0:03:56]} 18. g4 {[%emt 0:00:00]} Rfd8 {[%emt 0:03:25]} 19. Nd5 {[%emt 0:00:00]} Bf8 {[%emt 0:04:35]} 20. Nb6 {[%emt 0:00:00]} Re7 {[%emt 0:05:17]} 21. Bc5 {[%emt 0:01:24]} Rc7 {[%emt 0:00:30]} 22. Nd5 {[%emt 0:00:30]} Rcc8 {[%emt 0:00:30]} 23. Bb6 {[%emt 0:00:30]} Rd7 {[%emt 0:00:30]} 24. g5 {[%emt 0:00:30]} Ne8 {[%emt 0:00:30]} 25. h4 {[%emt 0:00:30]} f6 {[%emt 0:00:30]} 26. gxf6 {[%emt 0:00:30]} gxf6 {[%emt 0:00:30]} 27. Kh2 {[%emt 0:00:30]} Bh6 {[%emt 0:00:30]} 28. Be3 {[%emt 0:00:30]} Bxe3 {[%emt 0:00:30]} 29. Bh3 {[%emt 0:00:30]} Qf7 {[%emt 0:00:30]} 30. Qxe3 {[%emt 0:00:30]} Kh8 {[%emt 0:00:30]} 31. Bxd7 {[%emt 0:00:30]} Bxd7 {[%emt 0:00:30]} 32. Rg1 {[%emt 0:00:30]} Ng7 {[%emt 0:00:30]} 33. Qh6 {[%emt 0:00:30]} Rf8 {[%emt 0:00:30]} 34. f3 {[%emt 0:00:30]} Qg8 {[%emt 0:00:30]} 35. Rdg2 {[%emt 0:00:30]} 1-0

[Event "FIDE WCCC Girls-10 2024"]
[Site "Montesilvano"]
[Date "2024.11.24"]
[Round "9.27"]
[White "Malcheva, Niya"]
[Black "Lisboa, Maria Eduarda Mazzar"]
[Result "1/2-1/2"]
[Annotator "NA RC"]
[ECO "B01"]
[WhiteElo "1620"]
[BlackElo "1490"]
[PlyCount "138"]
[EventDate "2024.11.18"]
[EventType "swiss"]
[EventCountry "ITA"]
[SourceTitle "playchess.com"]
[Source "ChessBase"]
[SourceQuality "1"]
[TimeControl "5400+30"]

1. e4 {[%emt 0:03:03]} d5 {[%emt 0:00:15]} 2. exd5 {[%emt 0:00:04]} Qxd5 {[%emt 0:00:07]} 3. Nc3 {[%emt 0:00:12]} Qa5 {[%emt 0:00:06]} 4. Nf3 {[%emt 0:00:50]} Nf6 {[%emt 0:00:34]} 5. h3 {[%emt 0:01:22]} e6 {[%emt 0:04:10]} 6. Bc4 {[%emt 0:02:00]} c6 {[%emt 0:03:21]} 7. d3 {[%emt 0:00:09]} Bd6 {[%emt 0:01:18]} 8. Bd2 {[%emt 0:00:20]} Qc7 {[%emt 0:00:06]} 9. a3 {[%emt 0:01:38]} O-O {[%emt 0:00:09]} 10. O-O {[%emt 0:00:05]} Nbd7 {[%emt 0:03:56]} 11. Qe2 {[%emt 0:02:05]} Nb6 {[%emt 0:01:13]} 12. Ba2 {[%emt 0:00:19]} Bd7 {[%emt 0:00:30]} 13. Ne4 {[%emt 0:01:00]} Be7 {[%emt 0:19:54]} 14. Bc3 {[%emt 0:02:29]} Qd8 {[%emt 0:04:41]} 15. Rae1 {[%emt 0:05:27]} Nbd5 {[%emt 0:02:37]} 16. Be5 {[%emt 0:00:33]} Nxe4 {[%emt 0:06:58]} 17. Qxe4 {[%emt 0:01:37]} Nf6 {[%emt 0:02:47]} 18. Qd4 {[%emt 0:01:01]} c5 {[%emt 0:00:44]} 19. Qc3 {[%emt 0:01:17]} b6 {[%emt 0:02:04]} 20. d4 {[%emt 0:01:23]} Rc8 {[%emt 0:02:47]} 21. dxc5 {[%emt 0:04:15]} Bxc5 {[%emt 0:03:17]} 22. Qd3 {[%emt 0:00:43]} Bc6 {[%emt 0:05:02]} 23. Nd4 {[%emt 0:02:42]} Bxd4 {[%emt 0:03:24]} 24. Bxd4 {[%emt 0:01:01]} Qd7 {[%emt 0:03:26]} 25. c3 {[%emt 0:01:03]} Rfd8 {[%emt 0:02:46]} 26. Qg3 {[%emt 0:01:08]} Kh8 {[%emt 0:00:11]} 27. Rd1 {[%emt 0:00:30]} Qe7 {[%emt 0:01:34]} 28. Bb1 {[%emt 0:01:48]} Rg8 {[%emt 0:01:40]} 29. Qd3 {[%emt 0:01:11]} Be4 {[%emt 0:04:52]} 30. Bxf6 {[%emt 0:00:50]} Bxd3 {[%emt 0:00:07]} 31. Bxe7 {[%emt 0:00:06]} Bxf1 {[%emt 0:00:07]} 32. Rxf1 {[%emt 0:00:02]} Rc7 {[%emt 0:01:24]} 33. Bh4 {[%emt 0:00:12]} Rd7 {[%emt 0:00:20]} 34. Bg5 {[%emt 0:00:08]} f6 {[%emt 0:01:09]} 35. Be3 {[%emt 0:00:05]} Rgd8 {[%emt 0:00:08]} 36. Bc2 {[%emt 0:00:04]} e5 {[%emt 0:02:08]} 37. f4 {[%emt 0:01:14]} Re7 {[%emt 0:01:31]} 38. fxe5 {[%emt 0:00:49]} Rxe5 {[%emt 0:00:17]} 39. Kf2 {[%emt 0:00:32]} Rde8 {[%emt 0:00:30]} 40. Re1 {[%emt 0:00:55]} f5 {[%emt 0:01:12]} 41. g3 {[%emt 0:00:07]} g5 {[%emt 0:00:41]} 42. Bd4 {[%emt 0:00:04]} Kg8 {[%emt 0:01:39]} 43. Rxe5 {[%emt 0:02:24]} Rxe5 {[%emt 0:00:34]} 44. Bxf5 {[%emt 0:00:05]} Rxf5+ {[%emt 0:00:11]} 45. Ke3 {[%emt 0:00:15]} Rf1 {[%emt 0:01:09]} 46. c4 {[%emt 0:00:51]} Rh1 {[%emt 0:00:40]} 47. Kf3 {[%emt 0:00:24]} h6 {[%emt 0:01:58]} 48. Kg2 {[%emt 0:00:10]} Rd1 {[%emt 0:00:54]} 49. Bc3 {[%emt 0:00:05]} Rd7 {[%emt 0:00:32]} 50. Be5 {[%emt 0:00:40]} Kf7 {[%emt 0:00:47]} 51. Kf3 {[%emt 0:00:43]} Ke6 {[%emt 0:00:30]} 52. Ke4 {[%emt 0:00:28]} h5 {[%emt 0:02:51]} 53. h4 {[%emt 0:01:21]} g4 {[%emt 0:00:35]} 54. Bf4 {[%emt 0:00:21]} a6 {[%emt 0:02:40]} 55. Be5 {[%emt 0:00:32]} Rf7 {[%emt 0:03:43]} 56. Bf4 {[%emt 0:00:09]} Rd7 {[%emt 0:01:15]} 57. Be5 {[%emt 0:00:07]} Rd2 {[%emt 0:01:20]} 58. Bc3 {[%emt 0:00:09]} Rf2 {[%emt 0:00:50]} 59. Bd4 {[%emt 0:01:35]} Rf3 {[%emt 0:00:46]} 60. Be5 {[%emt 0:00:12]} Rf5 {[%emt 0:01:39]} 61. Bc3 {[%emt 0:00:09]} b5 {[%emt 0:00:30]} 62. cxb5 {[%emt 0:00:12]} axb5 {[%emt 0:00:27]} 63. Bd4 {[%emt 0:00:25]} Rf3 {[%emt 0:01:01]} 64. Be5 {[%emt 0:00:11]} Rf7 {[%emt 0:00:58]} 65. Bc3 {[%emt 0:00:07]} Rf3 {[%emt 0:00:49]} 66. Be5 {[%emt 0:00:15]} Rf1 {[%emt 0:00:12]} 67. Bc3 {[%emt 0:00:09]} Rf3 {[%emt 0:00:10]} 68. Be5 {[%emt 0:00:22]} Rf7 {[%emt 0:00:48]} 69. Bc3 {[%emt 0:00:04]} Rf3 {[%emt 0:00:05]} 1/2-1/2

[Event "FIDE WCCC Girls-10 2024"]
[Site "Montesilvano"]
[Date "2024.11.24"]
[Round "9.28"]
[White "Poliak, Margarita"]
[Black "Xin, Lisa J."]
[Result "1-0"]
[Annotator "NA RC"]
[ECO "C11"]
[WhiteElo "1514"]
[BlackElo "1602"]
[PlyCount "49"]
[EventDate "2024.11.18"]
[EventType "swiss"]
[EventCountry "ITA"]
[SourceTitle "playchess.com"]
[Source "ChessBase"]
[SourceQuality "1"]
[TimeControl "5400+30"]

1. e4 {[%emt 0:00:04]} e6 {[%emt 0:00:06]} 2. d4 {[%emt 0:00:11]} d5 {[%emt 0:00:05]} 3. Nc3 {[%emt 0:00:08]} Nf6 {[%emt 0:00:06]} 4. e5 {[%emt 0:00:09]} Nfd7 {[%emt 0:00:05]} 5. Nce2 {[%emt 0:00:17]} c5 {[%emt 0:00:10]} 6. f4 {[%emt 0:00:30]} Nc6 {[%emt 0:00:05]} 7. Nf3 {[%emt 0:00:16]} Be7 {[%emt 0:00:39]} 8. g3 {[%emt 0:00:18]} Qb6 {[%emt 0:02:35]} 9. c3 {[%emt 0:01:07]} O-O {[%emt 0:06:28]} 10. Bh3 {[%emt 0:01:18]} Rd8 {[%emt 0:06:05]} 11. O-O {[%emt 0:02:27]} Nf8 {[%emt 0:01:50]} 12. Kh1 {[%emt 0:03:42]} Bd7 {[%emt 0:00:54]} 13. g4 {[%emt 0:03:57]} Rac8 {[%emt 0:06:12]} 14. f5 {[%emt 0:06:17]} cxd4 {[%emt 0:03:25]} 15. cxd4 {[%emt 0:02:25]} Nb4 {[%emt 0:00:48]} 16. Bg5 {[%emt 0:13:02]} Bxg5 {[%emt 0:04:09]} 17. Nxg5 {[%emt 0:00:11]} exf5 {[%emt 0:00:28]} 18. gxf5 {[%emt 0:23:40]} Nc2 {[%emt 0:00:21]} 19. f6 {[%emt 0:04:05]} Bxh3 {[%emt 0:01:42]} 20. Nxh3 {[%emt 0:00:05]} g6 {[%emt 0:00:22]} 21. Qd2 {[%emt 0:01:13]} Nxa1 {[%emt 0:00:40]} 22. Qh6 {[%emt 0:00:08]} Ne6 {[%emt 0:00:15]} 23. Ng5 {[%emt 0:00:03]} Qc7 {[%emt 0:05:16]} 24. Qxh7+ {[%emt 0:00:10]} Kf8 {[%emt 0:00:07]} 25. Qh8# {[%emt 0:00:04]} 1-0

[Event "FIDE WCCC Girls-10 2024"]
[Site "Montesilvano"]
[Date "2024.11.24"]
[Round "9.29"]
[White "Abibulla, Inzhu"]
[Black "Gastaldo, Agathe"]
[Result "1/2-1/2"]
[Annotator "NA RC"]
[ECO "B08"]
[WhiteElo "1499"]
[BlackElo "1589"]
[PlyCount "100"]
[EventDate "2024.11.18"]
[EventType "swiss"]
[EventCountry "ITA"]
[SourceTitle "playchess.com"]
[Source "ChessBase"]
[SourceQuality "1"]
[TimeControl "5400+30"]

1. e4 {[%emt 0:00:03]} d6 {[%emt 0:00:23]} 2. d4 {[%emt 0:00:32]} Nf6 {[%emt 0:00:39]} 3. Nc3 {[%emt 0:00:32]} g6 {[%emt 0:00:43]} 4. Bc4 {[%emt 0:02:08]} Bg7 {[%emt 0:00:55]} 5. Nf3 {[%emt 0:02:29]} O-O {[%emt 0:03:22]} 6. O-O {[%emt 0:00:48]} Nbd7 {[%emt 0:04:55]} 7. Be3 {[%emt 0:01:41]} e5 {[%emt 0:01:59]} 8. dxe5 {[%emt 0:02:55]} Nxe5 {[%emt 0:06:14]} 9. Nxe5 {[%emt 0:02:05]} dxe5 {[%emt 0:00:18]} 10. Bg5 {[%emt 0:02:23]} Qd4 {[%emt 0:05:51]} 11. Qxd4 {[%emt 0:05:50]} exd4 {[%emt 0:04:40]} 12. Nd5 {[%emt 0:04:03]} Be6 {[%emt 0:08:10]} 13. Bxf6 {[%emt 0:02:40]} Bxd5 {[%emt 0:01:05]} 14. Bxg7 {[%emt 0:00:33]} Bxc4 {[%emt 0:00:16]} 15. Bxf8 {[%emt 0:00:09]} Bxf1 {[%emt 0:00:44]} 16. Bc5 {[%emt 0:00:56]} Bc4 {[%emt 0:01:42]} 17. Bxd4 {[%emt 0:00:53]} Rd8 {[%emt 0:02:02]} 18. Be3 {[%emt 0:01:56]} Re8 {[%emt 0:04:48]} 19. f3 {[%emt 0:01:15]} f5 {[%emt 0:01:37]} 20. b3 {[%emt 0:02:49]} Bf7 {[%emt 0:00:53]} 21. Rd1 {[%emt 0:03:52]} fxe4 {[%emt 0:03:58]} 22. fxe4 {[%emt 0:00:20]} Rxe4 {[%emt 0:02:19]} 23. Bxa7 {[%emt 0:01:49]} Re2 {[%emt 0:02:01]} 24. Rd8+ {[%emt 0:03:02]} Kg7 {[%emt 0:03:07]} 25. Bd4+ {[%emt 0:01:03]} Kh6 {[%emt 0:00:30]} 26. Rd7 {[%emt 0:00:31]} Be8 {[%emt 0:03:42]} 27. Bg7+ {[%emt 0:01:44]} Kg5 {[%emt 0:00:48]} 28. Rd5+ {[%emt 0:00:25]} Kf4 {[%emt 0:01:33]} 29. Bh6+ {[%emt 0:01:01]} Ke4 {[%emt 0:01:09]} 30. Rg5 {[%emt 0:04:51]} Rxc2 {[%emt 0:01:12]} 31. Rg3 {[%emt 0:01:28]} Bc6 {[%emt 0:01:50]} 32. Rg4+ {[%emt 0:04:11]} Kf5 {[%emt 0:00:35]} 33. Rf4+ {[%emt 0:00:07]} Ke5 {[%emt 0:00:16]} 34. Rf2 {[%emt 0:00:13]} Rxf2 {[%emt 0:05:22]} 35. Kxf2 {[%emt 0:00:06]} Kd4 {[%emt 0:00:21]} 36. Bf4 {[%emt 0:00:49]} Kc3 {[%emt 0:00:26]} 37. Be5+ {[%emt 0:00:21]} Kc2 {[%emt 0:00:30]} 38. b4 {[%emt 0:00:51]} Kb1 {[%emt 0:00:29]} 39. a3 {[%emt 0:00:21]} Ka2 {[%emt 0:00:07]} 40. Bxc7 {[%emt 0:00:05]} Kxa3 {[%emt 0:00:35]} 41. Bd6 {[%emt 0:00:03]} Kb3 {[%emt 0:00:47]} 42. g3 {[%emt 0:00:06]} Kc4 {[%emt 0:01:12]} 43. Ke3 {[%emt 0:00:21]} Kd5 {[%emt 0:00:31]} 44. Bc5 {[%emt 0:00:14]} Ke5 {[%emt 0:00:52]} 45. Bb6 {[%emt 0:00:29]} Kf5 {[%emt 0:01:17]} 46. Bc7 {[%emt 0:00:31]} Kg4 {[%emt 0:01:49]} 47. Kd4 {[%emt 0:04:58]} Kh3 {[%emt 0:01:01]} 48. Ke5 {[%emt 0:00:08]} Kxh2 {[%emt 0:00:44]} 49. Kf6 {[%emt 0:00:05]} Be4 {[%emt 0:00:44]} 50. Kg5 {[%emt 0:00:20]} h5 {[%emt 0:03:50]} 1/2-1/2

[Event "FIDE WCCC Girls-10 2024"]
[Site "Montesilvano"]
[Date "2024.11.24"]
[Round "9.30"]
[White "Bjerregaard Hagen, Frida"]
[Black "Saltkhutsishvili, Sara"]
[Result "0-1"]
[Annotator "NA RC"]
[ECO "B13"]
[WhiteElo "1815"]
[BlackElo "1546"]
[PlyCount "68"]
[EventDate "2024.11.18"]
[EventType "swiss"]
[EventCountry "ITA"]
[SourceTitle "playchess.com"]
[Source "ChessBase"]
[SourceQuality "1"]
[TimeControl "5400+30"]

1. e4 {[%emt 0:00:02]} c6 {[%emt 0:03:18]} 2. d4 {[%emt 0:00:14]} d5 {[%emt 0:00:11]} 3. exd5 {[%emt 0:00:39]} cxd5 {[%emt 0:00:13]} 4. Bd3 {[%emt 0:02:13]} Nc6 {[%emt 0:05:19]} 5. c3 {[%emt 0:00:22]} Qc7 {[%emt 0:01:50]} 6. h3 {[%emt 0:02:19]} e6 {[%emt 0:06:00]} 7. Nf3 {[%emt 0:02:06]} Bd6 {[%emt 0:05:03]} 8. O-O {[%emt 0:02:56]} Nge7 {[%emt 0:04:04]} 9. Be3 {[%emt 0:06:01]} h6 {[%emt 0:03:00]} 10. Nbd2 {[%emt 0:04:28]} O-O {[%emt 0:03:10]} 11. Be2 {[%emt 0:04:40]} f5 {[%emt 0:09:18]} 12. Nb3 {[%emt 0:07:44]} b6 {[%emt 0:15:40]} 13. Nc1 {[%emt 0:03:39]} Na5 {[%emt 0:06:40]} 14. Re1 {[%emt 0:10:06]} Nc4 {[%emt 0:07:16]} 15. Bxc4 {[%emt 0:00:50]} dxc4 {[%emt 0:00:38]} 16. Bd2 {[%emt 0:08:02]} Nc6 {[%emt 0:08:40]} 17. b3 {[%emt 0:07:15]} cxb3 {[%emt 0:02:53]} 18. axb3 {[%emt 0:00:48]} e5 {[%emt 0:03:23]} 19. dxe5 {[%emt 0:02:25]} Nxe5 {[%emt 0:00:51]} 20. c4 {[%emt 0:10:13]} Nxf3+ {[%emt 0:04:08]} 21. Qxf3 {[%emt 0:01:33]} Bb7 {[%emt 0:00:11]} 22. Qc3 {[%emt 0:03:44]} Qc6 {[%emt 0:02:14]} 23. f3 {[%emt 0:01:54]} Rae8 {[%emt 0:02:36]} 24. Nd3 {[%emt 0:01:51]} Bg3 25. Rxe8 {[%emt 0:01:57]} Rxe8 {[%emt 0:01:02]} 26. Bf4 {[%emt 0:03:06]} Re2 {[%emt 0:01:23]} 27. Rf1 {[%emt 0:04:03]} Bh4 {[%emt 0:01:46]} 28. Qd4 {[%emt 0:02:19]} Qg6 {[%emt 0:00:38]} 29. Nf2 {[%emt 0:00:59]} Bxf3 {[%emt 0:00:19]} 30. g4 {[%emt 0:02:21]} fxg4 {[%emt 0:00:45]} 31. Qd6 {[%emt 0:01:19]} Bxf2+ {[%emt 0:00:33]} 32. Rxf2 {[%emt 0:00:13]} Qb1+ {[%emt 0:00:06]} 33. Kh2 {[%emt 0:00:12]} Qh1+ {[%emt 0:00:21]} 34. Kg3 {[%emt 0:00:06]} Qxh3# {[%emt 0:00:09]} 0-1

[Event "FIDE WCCC Girls-10 2024"]
[Site "Montesilvano"]
[Date "2024.11.24"]
[Round "9.31"]
[White "Billod-Laillet, Camille"]
[Black "Smilic, Nina"]
[Result "1-0"]
[Annotator "NA RC"]
[ECO "B25"]
[WhiteElo "1732"]
[BlackElo "1540"]
[PlyCount "211"]
[EventDate "2024.11.18"]
[EventType "swiss"]
[EventCountry "ITA"]
[SourceTitle "playchess.com"]
[Source "ChessBase"]
[SourceQuality "1"]
[TimeControl "5400+30"]

1. e4 {[%emt 0:00:03]} c5 {[%emt 0:00:07]} 2. Nc3 {[%emt 0:00:13]} Nc6 {[%emt 0:00:07]} 3. f4 {[%emt 0:00:09]} d6 {[%emt 0:00:30]} 4. Nf3 {[%emt 0:00:12]} Nf6 {[%emt 0:00:36]} 5. d3 {[%emt 0:02:45]} g6 {[%emt 0:01:21]} 6. g3 {[%emt 0:00:10]} Bg7 {[%emt 0:00:41]} 7. Bg2 {[%emt 0:00:11]} O-O {[%emt 0:00:47]} 8. O-O {[%emt 0:00:21]} Re8 {[%emt 0:07:01]} 9. h3 {[%emt 0:01:11]} a6 {[%emt 0:10:36]} 10. Qe1 {[%emt 0:04:55]} Nb4 {[%emt 0:04:14]} 11. Qf2 {[%emt 0:02:33]} Rb8 {[%emt 0:01:29]} 12. a3 {[%emt 0:00:45]} Nc6 {[%emt 0:00:31]} 13. g4 {[%emt 0:03:56]} Qc7 {[%emt 0:09:32]} 14. Qh4 {[%emt 0:02:35]} Nd4 {[%emt 0:07:29]} 15. Ne1 {[%emt 0:06:05]} b5 {[%emt 0:02:59]} 16. Rf2 {[%emt 0:07:22]} b4 {[%emt 0:06:35]} 17. axb4 {[%emt 0:01:49]} cxb4 {[%emt 0:00:21]} 18. Nd1 {[%emt 0:00:18]} Bb7 {[%emt 0:07:48]} 19. Be3 {[%emt 0:03:12]} Nc6 {[%emt 0:03:43]} 20. f5 {[%emt 0:11:35]} Qd8 {[%emt 0:10:43]} 21. Bh6 {[%emt 0:07:37]} Nd7 {[%emt 0:06:25]} 22. Bxg7 {[%emt 0:16:19]} Kxg7 {[%emt 0:00:16]} 23. g5 {[%emt 0:00:33]} a5 {[%emt 0:04:26]} 24. Qh6+ {[%emt 0:02:31]} Kg8 {[%emt 0:00:16]} 25. h4 {[%emt 0:05:14]} Nce5 {[%emt 0:02:38]} 26. Bh3 {[%emt 0:04:12]} Ra8 {[%emt 0:01:02]} 27. Rh2 {[%emt 0:03:37]} Qb6+ {[%emt 0:02:28]} 28. Kh1 {[%emt 0:00:43]} gxf5 {[%emt 0:05:22]} 29. Bxf5 {[%emt 0:01:02]} Nf8 {[%emt 0:00:29]} 30. h5 {[%emt 0:02:54]} e6 {[%emt 0:00:55]} 31. Bh3 d5 {[%emt 0:01:46]} 32. Qf6 {[%emt 0:03:29]} Ned7 {[%emt 0:01:01]} 33. Qf4 {[%emt 0:00:42]} dxe4 {[%emt 0:00:30]} 34. dxe4 {[%emt 0:00:44]} Nc5 {[%emt 0:01:10]} 35. Re2 {[%emt 0:00:56]} Ba6 {[%emt 0:01:07]} 36. Rf2 {[%emt 0:02:08]} Ra7 {[%emt 0:00:55]} 37. h6 {[%emt 0:01:10]} Qd8 {[%emt 0:00:30]} 38. Qe5 {[%emt 0:00:40]} f6 {[%emt 0:00:29]} 39. Qxc5 {[%emt 0:00:25]} Rf7 {[%emt 0:00:30]} 40. gxf6 {[%emt 0:00:15]} Bb7 {[%emt 0:00:32]} 41. Qg5+ {[%emt 0:02:20]} Ng6 {[%emt 0:00:08]} 42. Bg2 {[%emt 0:00:30]} Qd4 {[%emt 0:00:46]} 43. Qd2 {[%emt 0:01:32]} Qe5 {[%emt 0:00:27]} 44. Kg1 {[%emt 0:00:36]} Qc5 {[%emt 0:00:37]} 45. Nd3 {[%emt 0:00:38]} Qb6 {[%emt 0:00:22]} 46. Ne3 {[%emt 0:00:39]} Qd4 {[%emt 0:00:36]} 47. Rxa5 {[%emt 0:00:50]} Bxe4 {[%emt 0:00:34]} 48. Qxb4 {[%emt 0:00:31]} Qxb4 {[%emt 0:00:22]} 49. Nxb4 {[%emt 0:00:07]} Bxg2 {[%emt 0:00:26]} 50. Kxg2 {[%emt 0:00:14]} Rb8 {[%emt 0:00:25]} 51. c3 {[%emt 0:00:12]} Nh4+ {[%emt 0:00:29]} 52. Kh3 {[%emt 0:00:13]} Ng6 {[%emt 0:00:21]} 53. Ra6 {[%emt 0:00:18]} e5 {[%emt 0:00:22]} 54. Re6 {[%emt 0:00:24]} Nf4+ {[%emt 0:00:20]} 55. Rxf4 {[%emt 0:00:22]} exf4 {[%emt 0:00:06]} 56. Ned5 {[%emt 0:00:13]} Rbf8 {[%emt 0:01:00]} 57. Kg4 {[%emt 0:00:24]} f3 {[%emt 0:00:31]} 58. Kxf3 {[%emt 0:00:19]} Ra7 {[%emt 0:00:34]} 59. Re4 {[%emt 0:01:08]} Ra1 {[%emt 0:00:38]} 60. Kg2 {[%emt 0:00:35]} Kh8 {[%emt 0:00:24]} 61. f7 {[%emt 0:00:27]} Ra7 {[%emt 0:00:31]} 62. Kf3 {[%emt 0:02:38]} Raxf7+ {[%emt 0:00:56]} 63. Ke3 {[%emt 0:00:12]} Rf1 {[%emt 0:00:16]} 64. Kd3 {[%emt 0:00:42]} Rd1+ {[%emt 0:00:26]} 65. Kc2 {[%emt 0:00:15]} Rh1 {[%emt 0:00:08]} 66. Re6 {[%emt 0:00:16]} Rh2+ {[%emt 0:00:17]} 67. Kb3 {[%emt 0:00:11]} Rh3 {[%emt 0:00:28]} 68. Nf6 {[%emt 0:00:42]} Rxh6 {[%emt 0:01:10]} 69. Nbd5 {[%emt 0:00:18]} Rb8+ {[%emt 0:00:48]} 70. Kc4 {[%emt 0:00:24]} Rh4+ {[%emt 0:00:32]} 71. Kc5 {[%emt 0:00:17]} Rxb2 {[%emt 0:00:26]} 72. Re8+ {[%emt 0:00:21]} Kg7 {[%emt 0:00:04]} 73. Re7+ {[%emt 0:00:28]} Kg6 {[%emt 0:00:41]} 74. Re3 {[%emt 0:00:46]} Rb8 {[%emt 0:00:40]} 75. Kd6 {[%emt 0:01:10]} Ra4 {[%emt 0:00:34]} 76. Ke6 {[%emt 0:00:41]} Ra6+ {[%emt 0:00:32]} 77. Ke5 {[%emt 0:00:18]} Rb5 {[%emt 0:00:29]} 78. Rg3+ {[%emt 0:00:50]} Kf7 {[%emt 0:00:23]} 79. Nxh7 {[%emt 0:00:31]} Re6+ {[%emt 0:00:26]} 80. Kd4 {[%emt 0:00:13]} Rd6 {[%emt 0:00:42]} 81. Ng5+ {[%emt 0:00:19]} Ke8 {[%emt 0:00:30]} 82. c4 {[%emt 0:00:35]} Rb1 {[%emt 0:00:17]} 83. Re3+ {[%emt 0:00:23]} Kd7 {[%emt 0:00:19]} 84. Re7+ {[%emt 0:00:33]} Kc8 {[%emt 0:00:32]} 85. Rc7+ {[%emt 0:00:38]} Kb8 {[%emt 0:00:22]} 86. Rg7 {[%emt 0:00:38]} Rg1 {[%emt 0:01:00]} 87. Kc5 {[%emt 0:00:19]} Rd8 {[%emt 0:00:25]} 88. Kc6 {[%emt 0:00:57]} Rc8+ {[%emt 0:00:33]} 89. Kb5 {[%emt 0:00:36]} Rb1+ {[%emt 0:00:13]} 90. Nb4 {[%emt 0:00:19]} Rf8 {[%emt 0:00:51]} 91. Ne6 {[%emt 0:00:41]} Re8 {[%emt 0:00:32]} 92. Nc5 {[%emt 0:00:26]} Rh1 {[%emt 0:00:25]} 93. Nba6+ {[%emt 0:00:21]} Ka8 {[%emt 0:00:35]} 94. Nc7+ {[%emt 0:00:17]} Kb8 {[%emt 0:00:07]} 95. Nxe8 {[%emt 0:00:15]} Rb1+ {[%emt 0:00:11]} 96. Kc6 {[%emt 0:00:17]} Rh1 {[%emt 0:00:33]} 97. Rg6 {[%emt 0:00:23]} Rh8 {[%emt 0:00:49]} 98. Nd6 {[%emt 0:00:23]} Rd8 {[%emt 0:00:49]} 99. Rg7 {[%emt 0:00:28]} Rh8 {[%emt 0:00:23]} 100. Na6+ {[%emt 0:00:34]} Ka8 {[%emt 0:00:15]} 101. Nc7+ {[%emt 0:00:44]} Ka7 {[%emt 0:00:45]} 102. Nce8+ {[%emt 0:01:01]} Ka6 {[%emt 0:00:35]} 103. Rg3 {[%emt 0:00:54]} Ka5 {[%emt 0:00:30]} 104. Rb3 {[%emt 0:00:27]} Ka4 {[%emt 0:00:25]} 105. Rb8 {[%emt 0:00:24]} Ka3 {[%emt 0:00:31]} 106. c5 {[%emt 0:00:10]} 1-0

[Event "FIDE WCCC Girls-10 2024"]
[Site "Montesilvano"]
[Date "2024.11.24"]
[Round "9.32"]
[White "Aragonda, Sahasra"]
[Black "Serradell Munoz, Silvia"]
[Result "1-0"]
[Annotator "NA RC"]
[ECO "D03"]
[WhiteElo "1526"]
[BlackElo "1670"]
[PlyCount "59"]
[EventDate "2024.11.18"]
[EventType "swiss"]
[EventCountry "ITA"]
[SourceTitle "playchess.com"]
[Source "ChessBase"]
[SourceQuality "1"]
[TimeControl "5400+30"]

1. d4 {[%emt 0:00:03]} Nf6 {[%emt 0:00:37]} 2. Nf3 {[%emt 0:00:36]} e6 {[%emt 0:00:33]} 3. Bg5 {[%emt 0:00:25]} Be7 {[%emt 0:04:30]} 4. Nbd2 {[%emt 0:02:07]} d5 {[%emt 0:05:00]} 5. e3 {[%emt 0:02:15]} O-O {[%emt 0:05:30]} 6. Bd3 {[%emt 0:03:30]} b6 {[%emt 0:04:37]} 7. c3 {[%emt 0:01:09]} c5 {[%emt 0:05:15]} 8. Ne5 {[%emt 0:05:14]} Nbd7 {[%emt 0:05:28]} 9. f4 {[%emt 0:03:35]} Nxe5 {[%emt 0:03:54]} 10. fxe5 {[%emt 0:03:02]} Nd7 {[%emt 0:03:00]} 11. Bxe7 {[%emt 0:02:06]} Qxe7 {[%emt 0:01:26]} 12. Qh5 {[%emt 0:07:28]} h6 {[%emt 0:04:58]} 13. O-O {[%emt 0:09:39]} a5 {[%emt 0:08:45]} 14. Rf3 {[%emt 0:12:17]} Ba6 {[%emt 0:05:36]} 15. Bxa6 {[%emt 0:04:23]} Rxa6 {[%emt 0:01:27]} 16. Rg3 {[%emt 0:05:56]} f6 {[%emt 0:02:18]} 17. exf6 {[%emt 0:09:18]} Nxf6 {[%emt 0:01:21]} 18. Qxh6 {[%emt 0:02:57]} Qf7 {[%emt 0:04:11]} 19. Qg6 {[%emt 0:02:01]} Qxg6 {[%emt 0:01:31]} 20. Rxg6 {[%emt 0:00:18]} Kh7 {[%emt 0:01:03]} 21. Rg3 {[%emt 0:01:19]} Nh5 {[%emt 0:01:24]} 22. Rf3 {[%emt 0:00:45]} Raa8 {[%emt 0:01:18]} 23. Raf1 {[%emt 0:00:28]} Rfb8 {[%emt 0:06:47]} 24. Rf7 {[%emt 0:01:20]} Nf6 {[%emt 0:01:03]} 25. R1xf6 {[%emt 0:00:15]} Re8 {[%emt 0:00:50]} 26. Rf1 {[%emt 0:00:28]} Rab8 {[%emt 0:00:44]} 27. Rc7 {[%emt 0:01:28]} cxd4 {[%emt 0:01:16]} 28. exd4 {[%emt 0:01:25]} Rbc8 {[%emt 0:01:29]} 29. Rff7 {[%emt 0:01:11]} Rg8 {[%emt 0:00:51]} 30. Rxg7+ {[%emt 0:01:30]} 1-0